[Event "Titled Tuesday Blitz September 14 2021"]
[White "Perez Ponsa, Federico"]
[Black "Csonka, Balazs"]
[WhiteFideId "117927"]
[BlackFideId "742910"]
[WhiteElo "2672"]
[BlackElo "2404"]
[Result "1-0"]
[Round "10"]
[TimeControl "180+1"]
[Date "2021.09.15"]
[WhiteClock "0:00:08"]
[BlackClock "0:00:01"]

1. c4 {[%clk 0:02:52]}  e6 {[%clk 0:03:00]} 2. g3 {[%clk 0:02:51]}  d5 {[%clk 0:02:59]} 3. Bg2 {[%clk 0:02:52]}  Nf6 {[%clk 0:02:59]} 4. Nf3 {[%clk 0:02:52]}  Be7 {[%clk 0:02:58]} 5. O-O {[%clk 0:02:52]}  O-O {[%clk 0:02:58]} 6. b3 {[%clk 0:02:52]}  b6 {[%clk 0:02:55]} 7. Bb2 {[%clk 0:02:52]}  Bb7 {[%clk 0:02:56]} 8. e3 {[%clk 0:02:51]}  c5 {[%clk 0:02:56]} 9. Nc3 {[%clk 0:02:47]}  Qc8 {[%clk 0:02:56]} 10. Rc1 {[%clk 0:02:38]}  Rd8 {[%clk 0:02:50]} 11. d4 {[%clk 0:02:34]}  dxc4 {[%clk 0:02:41]} 12. bxc4 {[%clk 0:02:27]}  Nc6 {[%clk 0:02:41]} 13. d5 {[%clk 0:02:24]}  Na5 {[%clk 0:02:02]} 14. e4 {[%clk 0:02:10]}  Nxc4 {[%clk 0:02:00]} 15. Ba1 {[%clk 0:02:10]}  exd5 {[%clk 0:01:53]} 16. exd5 {[%clk 0:02:10]}  Nxd5 {[%clk 0:01:49]} 17. Nxd5 {[%clk 0:02:04]}  Bxd5 {[%clk 0:01:50]} 18. Qa4 {[%clk 0:01:44]}  Nd2 {[%clk 0:01:16]} 19. Nxd2 {[%clk 0:01:05]}  Bxg2 {[%clk 0:01:15]} 20. Rfe1 {[%clk 0:01:06]}  Bf8 {[%clk 0:01:05]} 21. Kxg2 {[%clk 0:01:01]}  Rxd2 {[%clk 0:01:04]} 22. Qf4 {[%clk 0:00:57]}  Rxa2 {[%clk 0:00:51]} 23. Rcd1 {[%clk 0:00:56]}  Qc6+ {[%clk 0:00:49]} 24. Kg1 {[%clk 0:00:56]}  Re8 {[%clk 0:00:49]} 25. Be5 {[%clk 0:00:52]}  Ra4 {[%clk 0:00:44]} 26. Qc1 {[%clk 0:00:48]}  Re4 {[%clk 0:00:40]} 27. Rxe4 {[%clk 0:00:44]}  Qxe4 {[%clk 0:00:41]} 28. Ba1 {[%clk 0:00:44]}  c4 {[%clk 0:00:33]} 29. h4 {[%clk 0:00:43]}  b5 {[%clk 0:00:28]} 30. Qg5 {[%clk 0:00:43]}  b4 {[%clk 0:00:23]} 31. h5 {[%clk 0:00:39]}  h6 {[%clk 0:00:21]} 32. Qb5 {[%clk 0:00:40]}  c3 {[%clk 0:00:20]} 33. Kh2 {[%clk 0:00:36]}  Qe2 {[%clk 0:00:14]} 34. Qd5 {[%clk 0:00:36]}  Qxf2+ {[%clk 0:00:13]} 35. Kh3 {[%clk 0:00:37]}  Re2 {[%clk 0:00:08]} 36. Qa8 {[%clk 0:00:29]}  Qh2+ {[%clk 0:00:05]} 37. Kg4 {[%clk 0:00:30]}  Re4+ {[%clk 0:00:06]} 38. Qxe4 {[%clk 0:00:29]}  Qa2 {[%clk 0:00:05]} 39. Rd8 {[%clk 0:00:23]}  f6 {[%clk 0:00:02]} 40. Qa8 {[%clk 0:00:14]}  Qf7 {[%clk 0:00:01]} 41. Qc8 {[%clk 0:00:14]}  f5+ {[%clk 0:00:01]} 42. Qxf5 {[%clk 0:00:13]}  Qxf5+ {[%clk 0:00:02]} 43. Kxf5 {[%clk 0:00:14]}  a5 {[%clk 0:00:02]} 44. Kg6 {[%clk 0:00:09]}  a4 {[%clk 0:00:01]} 45. Rc8 {[%clk 0:00:08]}  a3 {[%clk 0:00:01]} 46. g4 {[%clk 0:00:09]}  a2 {[%clk 0:00:01]} 47. Rc6 {[%clk 0:00:08]}  b3 {[%clk 0:00:01]} 48. Rxc3 {[%clk 0:00:08]} 1-0


[Site "https://www.chess.com"]

[Event "Titled Tuesday Blitz September 14 2021"]
[White "Rozman, Levy"]
[Black "Visakh N R"]
[WhiteFideId "2039877"]
[BlackFideId "25012223"]
[WhiteElo "2376"]
[BlackElo "2454"]
[Result "0-1"]
[Round "10"]
[TimeControl "180+1"]
[Date "2021.09.15"]
[WhiteClock "0:01:54"]
[BlackClock "0:01:53"]

1. c4 {[%clk 0:03:00]}  c5 {[%clk 0:02:50]} 2. Nf3 {[%clk 0:03:00]}  Nc6 {[%clk 0:02:49]} 3. e3 {[%clk 0:03:00]}  Nf6 {[%clk 0:02:45]} 4. Nc3 {[%clk 0:03:00]}  g6 {[%clk 0:02:45]} 5. d4 {[%clk 0:03:00]}  cxd4 {[%clk 0:02:46]} 6. exd4 {[%clk 0:03:01]}  d5 {[%clk 0:02:46]} 7. cxd5 {[%clk 0:03:01]}  Nxd5 {[%clk 0:02:47]} 8. Qb3 {[%clk 0:03:00]}  Nxc3 {[%clk 0:02:41]} 9. Bc4 {[%clk 0:03:00]}  Nd5 {[%clk 0:02:27]} 10. Bxd5 {[%clk 0:02:59]}  e6 {[%clk 0:02:27]} 11. Bxc6+ {[%clk 0:02:56]}  bxc6 {[%clk 0:02:28]} 12. O-O {[%clk 0:02:54]}  Bg7 {[%clk 0:02:28]} 13. Qe3 {[%clk 0:02:39]}  O-O {[%clk 0:02:22]} 14. b3 {[%clk 0:02:36]}  c5 {[%clk 0:02:18]} 15. Ba3 {[%clk 0:02:18]}  cxd4 {[%clk 0:02:16]} 16. Qe4 {[%clk 0:02:19]}  Ba6 {[%clk 0:01:58]} 17. Bxf8 {[%clk 0:02:16]}  Qxf8 {[%clk 0:01:59]} 18. Rfd1 {[%clk 0:02:05]}  Rd8 {[%clk 0:01:59]} 19. Nxd4 {[%clk 0:01:54]}  Qd6 {[%clk 0:01:53]} 0-1


[Site "https://www.chess.com"]

[Event "Titled Tuesday Blitz September 14 2021"]
[White "Stoyanov, Tsvetan"]
[Black "Erdogmus, Yagiz Kaan"]
[WhiteFideId "2917173"]
[BlackFideId "44599790"]
[WhiteElo "2191"]
[BlackElo "1783"]
[Result "0-1"]
[Round "10"]
[TimeControl "180+1"]
[Date "2021.09.15"]
[WhiteClock "0:02:09"]
[BlackClock "0:02:20"]

1. e4 {[%clk 0:03:00]}  c5 {[%clk 0:03:00]} 2. Nf3 {[%clk 0:03:01]}  e6 {[%clk 0:02:59]} 3. d4 {[%clk 0:03:01]}  cxd4 {[%clk 0:03:00]} 4. Nxd4 {[%clk 0:03:02]}  Nf6 {[%clk 0:03:00]} 5. Nc3 {[%clk 0:03:03]}  Nc6 {[%clk 0:03:00]} 6. Ndb5 {[%clk 0:03:03]}  Bb4 {[%clk 0:02:59]} 7. a3 {[%clk 0:03:03]}  Bxc3+ {[%clk 0:02:59]} 8. Nxc3 {[%clk 0:03:04]}  d5 {[%clk 0:03:00]} 9. exd5 {[%clk 0:03:04]}  exd5 {[%clk 0:03:01]} 10. Bd3 {[%clk 0:03:05]}  O-O {[%clk 0:03:00]} 11. O-O {[%clk 0:03:05]}  Bg4 {[%clk 0:02:57]} 12. Ne2 {[%clk 0:02:58]}  Re8 {[%clk 0:02:54]} 13. f3 {[%clk 0:02:56]}  Bh5 {[%clk 0:02:53]} 14. Nf4 {[%clk 0:02:54]}  Bg6 {[%clk 0:02:52]} 15. Nxg6 {[%clk 0:02:53]}  hxg6 {[%clk 0:02:52]} 16. Kh1 {[%clk 0:02:53]}  Ne5 {[%clk 0:02:50]} 17. Bf4 {[%clk 0:02:53]}  Qb6 {[%clk 0:02:47]} 18. b3 {[%clk 0:02:31]}  Qd4 {[%clk 0:02:38]} 19. Bxe5 {[%clk 0:02:20]}  Rxe5 {[%clk 0:02:36]} 20. Qd2 {[%clk 0:02:20]}  Rae8 {[%clk 0:02:33]} 21. Rad1 {[%clk 0:02:15]}  Nh5 {[%clk 0:02:20]} 22. f4 {[%clk 0:02:09]}  Ng3+ {[%clk 0:02:20]} 0-1


[Site "https://www.chess.com"]

[Event "Titled Tuesday Blitz September 14 2021"]
[White "Yuan, Qingyu"]
[Black "Jones, Gawain C B"]
[WhiteFideId "8609772"]
[BlackFideId "409561"]
[WhiteElo "2359"]
[BlackElo "2657"]
[Result "0-1"]
[Round "10"]
[TimeControl "180+1"]
[Date "2021.09.15"]
[WhiteClock "0:00:03"]
[BlackClock "0:00:09"]

1. d4 {[%clk 0:03:00]}  Nf6 {[%clk 0:02:59]} 2. c4 {[%clk 0:02:57]}  e6 {[%clk 0:02:59]} 3. Nf3 {[%clk 0:02:57]}  d5 {[%clk 0:02:58]} 4. Nc3 {[%clk 0:02:57]}  a6 {[%clk 0:02:58]} 5. cxd5 {[%clk 0:02:55]}  exd5 {[%clk 0:02:58]} 6. Bg5 {[%clk 0:02:51]}  Be7 {[%clk 0:02:57]} 7. e3 {[%clk 0:02:51]}  O-O {[%clk 0:02:56]} 8. Bd3 {[%clk 0:02:52]}  Re8 {[%clk 0:02:53]} 9. Qc2 {[%clk 0:02:48]}  Nbd7 {[%clk 0:02:51]} 10. O-O {[%clk 0:02:47]}  Nf8 {[%clk 0:02:50]} 11. h3 {[%clk 0:02:41]}  Ne4 {[%clk 0:02:45]} 12. Bxe7 {[%clk 0:02:23]}  Rxe7 {[%clk 0:02:43]} 13. Nxe4 {[%clk 0:02:20]}  dxe4 {[%clk 0:02:42]} 14. Bxe4 {[%clk 0:02:21]}  c6 {[%clk 0:02:35]} 15. Rfd1 {[%clk 0:02:14]}  Be6 {[%clk 0:02:34]} 16. Ne5 {[%clk 0:02:06]}  g6 {[%clk 0:02:29]} 17. Rd2 {[%clk 0:01:57]}  Qd6 {[%clk 0:02:13]} 18. Bf3 {[%clk 0:01:54]}  Rd8 {[%clk 0:02:07]} 19. a3 {[%clk 0:01:50]}  Bxh3 {[%clk 0:01:54]} 20. Nxc6 {[%clk 0:01:34]}  bxc6 {[%clk 0:01:53]} 21. gxh3 {[%clk 0:01:34]}  c5 {[%clk 0:01:53]} 22. Rad1 {[%clk 0:01:32]}  Qf6 {[%clk 0:01:51]} 23. Bg2 {[%clk 0:01:31]}  cxd4 {[%clk 0:01:50]} 24. Rxd4 {[%clk 0:01:31]}  Rxd4 {[%clk 0:01:49]} 25. Rxd4 {[%clk 0:01:30]}  Ne6 {[%clk 0:01:48]} 26. Rd6 {[%clk 0:01:26]}  h5 {[%clk 0:01:34]} 27. Rxa6 {[%clk 0:01:25]}  Rd7 {[%clk 0:01:26]} 28. Ra8+ {[%clk 0:01:17]}  Kh7 {[%clk 0:01:25]} 29. Qc3 {[%clk 0:01:14]}  Rd1+ {[%clk 0:01:16]} 30. Kh2 {[%clk 0:01:10]}  Nd4 {[%clk 0:00:52]} 31. exd4 {[%clk 0:00:38]}  Qxf2 {[%clk 0:00:50]} 32. d5 {[%clk 0:00:15]}  Qg1+ {[%clk 0:00:49]} 33. Kg3 {[%clk 0:00:15]}  Rd4 {[%clk 0:00:30]} 34. Re8 {[%clk 0:00:04]}  g5 {[%clk 0:00:17]} 35. Kf3 {[%clk 0:00:03]}  Rf4+ {[%clk 0:00:17]} 36. Ke2 {[%clk 0:00:02]}  Qxg2+ {[%clk 0:00:15]} 37. Kd1 {[%clk 0:00:03]}  Qxd5+ {[%clk 0:00:09]} 0-1


[Site "https://www.chess.com"]

[Event "Titled Tuesday Blitz September 14 2021"]
[White "Zhigalko, Sergei"]
[Black "Sarana, Alexey"]
[WhiteFideId "13502956"]
[BlackFideId "24133795"]
[WhiteElo "2662"]
[BlackElo "2671"]
[Result "1-0"]
[Round "10"]
[TimeControl "180+1"]
[Date "2021.09.15"]
[WhiteClock "0:00:05"]
[BlackClock "0:00:49"]

1. e4 {[%clk 0:03:00]}  c5 {[%clk 0:03:00]} 2. Nf3 {[%clk 0:03:00]}  d6 {[%clk 0:03:01]} 3. d4 {[%clk 0:03:00]}  cxd4 {[%clk 0:03:01]} 4. Qxd4 {[%clk 0:03:01]}  Nc6 {[%clk 0:02:57]} 5. Bb5 {[%clk 0:03:01]}  Bd7 {[%clk 0:02:57]} 6. Bxc6 {[%clk 0:03:02]}  Bxc6 {[%clk 0:02:58]} 7. Nc3 {[%clk 0:03:02]}  h6 {[%clk 0:02:57]} 8. Qd3 {[%clk 0:03:03]}  Nf6 {[%clk 0:02:57]} 9. Nd4 {[%clk 0:03:03]}  g6 {[%clk 0:02:52]} 10. f3 {[%clk 0:02:55]}  Bg7 {[%clk 0:02:52]} 11. Be3 {[%clk 0:02:56]}  Qa5 {[%clk 0:02:51]} 12. O-O-O {[%clk 0:02:54]}  Nd7 {[%clk 0:02:52]} 13. Kb1 {[%clk 0:02:52]}  Rc8 {[%clk 0:02:50]} 14. Nb3 {[%clk 0:02:29]}  Qc7 {[%clk 0:02:43]} 15. Bd4 {[%clk 0:02:29]}  Ne5 {[%clk 0:02:37]} 16. Qe2 {[%clk 0:02:23]}  O-O {[%clk 0:02:35]} 17. f4 {[%clk 0:02:22]}  Nd7 {[%clk 0:02:35]} 18. Bxg7 {[%clk 0:02:20]}  Kxg7 {[%clk 0:02:36]} 19. Nd4 {[%clk 0:02:14]}  a6 {[%clk 0:02:32]} 20. f5 {[%clk 0:01:27]}  Ne5 {[%clk 0:02:28]} 21. fxg6 {[%clk 0:01:27]}  Bd7 {[%clk 0:02:23]} 22. Nd5 {[%clk 0:01:08]}  Qc4 {[%clk 0:02:16]} 23. Nxe7 {[%clk 0:00:55]}  Qxe2 {[%clk 0:01:44]} 24. Nxe2 {[%clk 0:00:55]}  Rc4 {[%clk 0:01:40]} 25. Rxd6 {[%clk 0:00:43]}  fxg6 {[%clk 0:01:38]} 26. Nxg6 {[%clk 0:00:40]}  Nxg6 {[%clk 0:01:31]} 27. Rxd7+ {[%clk 0:00:40]}  Kg8 {[%clk 0:01:31]} 28. Nd4 {[%clk 0:00:22]}  Ne5 {[%clk 0:01:23]} 29. Rd5 {[%clk 0:00:18]}  Ng4 {[%clk 0:01:21]} 30. Re1 {[%clk 0:00:06]}  Ne3 {[%clk 0:01:18]} 31. Rd7 {[%clk 0:00:05]}  Rf2 {[%clk 0:01:13]} 32. c3 {[%clk 0:00:05]}  Nxg2 {[%clk 0:00:55]} 33. Rg1 {[%clk 0:00:05]}  b5 {[%clk 0:00:56]} 34. a3 {[%clk 0:00:03]}  Kf8 {[%clk 0:00:56]} 35. e5 {[%clk 0:00:03]}  Rc5 {[%clk 0:00:52]} 36. Ne6+ {[%clk 0:00:03]}  Ke8 {[%clk 0:00:51]} 37. Nxc5 {[%clk 0:00:04]}  h5 {[%clk 0:00:52]} 38. Rh7 {[%clk 0:00:03]}  h4 {[%clk 0:00:52]} 39. h3 {[%clk 0:00:03]}  a5 {[%clk 0:00:51]} 40. Ne4 {[%clk 0:00:03]}  Re2 {[%clk 0:00:51]} 41. Nd6+ {[%clk 0:00:03]}  Kf8 {[%clk 0:00:51]} 42. e6 {[%clk 0:00:04]}  b4 {[%clk 0:00:47]} 43. e7+ {[%clk 0:00:04]}  Kg8 {[%clk 0:00:48]} 44. e8=Q+ {[%clk 0:00:04]}  Rxe8 {[%clk 0:00:48]} 45. Nxe8 {[%clk 0:00:05]}  Kxh7 {[%clk 0:00:49]} 46. Rxg2 {[%clk 0:00:05]} 1-0


[Site "https://www.chess.com"]

[Event "Titled Tuesday Blitz September 14 2021"]
[White "Aggelis, Nikolaos"]
[Black "Djordjevic, Vuk"]
[WhiteFideId "4213220"]
[BlackFideId "902098"]
[WhiteElo "2154"]
[BlackElo "2463"]
[Result "0-1"]
[Round "11"]
[TimeControl "180+1"]
[Date "2021.09.15"]
[WhiteClock "0:01:20"]
[BlackClock "0:00:56"]

1. d4 {[%clk 0:03:00]}  Nf6 {[%clk 0:02:59]} 2. g3 {[%clk 0:03:01]}  d5 {[%clk 0:02:58]} 3. Nf3 {[%clk 0:02:59]}  e6 {[%clk 0:02:58]} 4. Bg2 {[%clk 0:02:59]}  Be7 {[%clk 0:02:58]} 5. O-O {[%clk 0:03:00]}  O-O {[%clk 0:02:59]} 6. c4 {[%clk 0:03:01]}  dxc4 {[%clk 0:02:58]} 7. Qc2 {[%clk 0:03:00]}  a6 {[%clk 0:02:56]} 8. a4 {[%clk 0:03:00]}  Bd7 {[%clk 0:02:56]} 9. Qxc4 {[%clk 0:03:01]}  Bc6 {[%clk 0:02:56]} 10. Bf4 {[%clk 0:03:02]}  Nd5 {[%clk 0:02:55]} 11. Nc3 {[%clk 0:02:59]}  Nxf4 {[%clk 0:02:54]} 12. gxf4 {[%clk 0:03:00]}  Nd7 {[%clk 0:02:55]} 13. e3 {[%clk 0:02:52]}  Nb6 {[%clk 0:02:52]} 14. Qe2 {[%clk 0:02:46]}  Bb4 {[%clk 0:02:46]} 15. a5 {[%clk 0:02:41]}  Bxc3 {[%clk 0:02:46]} 16. bxc3 {[%clk 0:02:41]}  Bb5 {[%clk 0:02:46]} 17. Qb2 {[%clk 0:02:27]}  Bxf1 {[%clk 0:02:45]} 18. Kxf1 {[%clk 0:02:25]}  Nc4 {[%clk 0:02:28]} 19. Qxb7 {[%clk 0:02:21]}  Qc8 {[%clk 0:01:49]} 20. Ne5 {[%clk 0:02:19]}  Qxb7 {[%clk 0:01:43]} 21. Bxb7 {[%clk 0:02:19]}  Ra7 {[%clk 0:01:43]} 22. Be4 {[%clk 0:02:15]}  Nd2+ {[%clk 0:01:40]} 23. Ke2 {[%clk 0:02:14]}  Nxe4 {[%clk 0:01:40]} 24. c4 {[%clk 0:02:12]}  Rb7 {[%clk 0:01:38]} 25. Kf3 {[%clk 0:02:05]}  f6 {[%clk 0:01:36]} 26. Nd7 {[%clk 0:02:04]}  Nd2+ {[%clk 0:01:35]} 27. Ke2 {[%clk 0:02:04]}  Nxc4 {[%clk 0:01:35]} 28. Nxf8 {[%clk 0:02:04]}  Kxf8 {[%clk 0:01:36]} 29. Kd3 {[%clk 0:02:02]}  Nd6 {[%clk 0:01:34]} 30. Rc1 {[%clk 0:02:00]}  Rb3+ {[%clk 0:01:24]} 31. Ke2 {[%clk 0:01:58]}  Rb5 {[%clk 0:01:16]} 32. Rxc7 {[%clk 0:01:57]}  Rxa5 {[%clk 0:01:16]} 33. Rc6 {[%clk 0:01:53]}  Ra2+ {[%clk 0:01:11]} 34. Kf3 {[%clk 0:01:49]}  Ke7 {[%clk 0:01:10]} 35. Rc7+ {[%clk 0:01:49]}  Kd8 {[%clk 0:01:11]} 36. Rxg7 {[%clk 0:01:50]}  f5 {[%clk 0:01:12]} 37. Rxh7 {[%clk 0:01:35]}  Ne4 {[%clk 0:01:10]} 38. Kg2 {[%clk 0:01:35]}  Rxf2+ {[%clk 0:01:09]} 39. Kg1 {[%clk 0:01:35]}  Rf3 {[%clk 0:01:03]} 40. Ra7 {[%clk 0:01:36]}  Rxe3 {[%clk 0:01:03]} 41. Rxa6 {[%clk 0:01:36]}  Ke7 {[%clk 0:01:03]} 42. h4 {[%clk 0:01:30]}  Rh3 {[%clk 0:00:59]} 43. Ra7+ {[%clk 0:01:24]}  Kd6 {[%clk 0:00:59]} 44. Ra6+ {[%clk 0:01:18]}  Kd5 {[%clk 0:00:58]} 45. Ra5+ {[%clk 0:01:19]}  Kxd4 {[%clk 0:00:58]} 46. Re5 {[%clk 0:01:20]}  Nc5 {[%clk 0:00:56]} 0-1


[Site "https://www.chess.com"]

[Event "Titled Tuesday Blitz September 14 2021"]
[White "Alikhanov, Felix"]
[Black "Avramidou, Anastasia"]
[WhiteFideId "4157427"]
[BlackFideId "4239873"]
[WhiteElo "2425"]
[BlackElo "2183"]
[Result "1-0"]
[Round "11"]
[TimeControl "180+1"]
[Date "2021.09.15"]
[WhiteClock "0:00:26"]
[BlackClock "0:00:03"]

1. e4 {[%clk 0:02:58]}  c6 {[%clk 0:03:00]} 2. d4 {[%clk 0:02:58]}  d5 {[%clk 0:03:01]} 3. Nd2 {[%clk 0:02:59]}  dxe4 {[%clk 0:03:00]} 4. Nxe4 {[%clk 0:02:59]}  Nf6 {[%clk 0:03:01]} 5. Nxf6+ {[%clk 0:03:00]}  exf6 {[%clk 0:03:02]} 6. Bc4 {[%clk 0:03:00]}  Bd6 {[%clk 0:03:02]} 7. Nf3 {[%clk 0:03:00]}  O-O {[%clk 0:03:03]} 8. O-O {[%clk 0:03:01]}  Nd7 {[%clk 0:03:02]} 9. c3 {[%clk 0:03:01]}  Nb6 {[%clk 0:02:59]} 10. Bb3 {[%clk 0:03:01]}  Re8 {[%clk 0:02:56]} 11. h3 {[%clk 0:02:58]}  Be6 {[%clk 0:02:56]} 12. Re1 {[%clk 0:02:52]}  Bxb3 {[%clk 0:02:55]} 13. Rxe8+ {[%clk 0:02:51]}  Qxe8 {[%clk 0:02:55]} 14. axb3 {[%clk 0:02:51]}  Nd5 {[%clk 0:02:49]} 15. c4 {[%clk 0:02:51]}  Nf4 {[%clk 0:02:48]} 16. c5 {[%clk 0:02:46]}  Bc7 {[%clk 0:02:46]} 17. Bxf4 {[%clk 0:02:46]}  Bxf4 {[%clk 0:02:46]} 18. Qd3 {[%clk 0:02:46]}  g6 {[%clk 0:02:40]} 19. Re1 {[%clk 0:02:46]}  Qd7 {[%clk 0:02:41]} 20. g3 {[%clk 0:02:44]}  Bc7 {[%clk 0:02:25]} 21. Kg2 {[%clk 0:02:43]}  Rd8 {[%clk 0:02:25]} 22. Qe4 {[%clk 0:02:41]}  b6 {[%clk 0:02:20]} 23. b4 {[%clk 0:02:38]}  a5 {[%clk 0:02:04]} 24. cxb6 {[%clk 0:02:11]}  Bxb6 {[%clk 0:02:01]} 25. bxa5 {[%clk 0:02:11]}  Bxa5 {[%clk 0:02:01]} 26. Rc1 {[%clk 0:02:11]}  Qd5 {[%clk 0:01:31]} 27. Qxd5 {[%clk 0:02:06]}  cxd5 {[%clk 0:01:29]} 28. Rc5 {[%clk 0:02:06]}  Bb6 {[%clk 0:01:27]} 29. Rc6 {[%clk 0:02:05]}  Ba5 {[%clk 0:01:12]} 30. Rxf6 {[%clk 0:02:04]}  Kg7 {[%clk 0:01:13]} 31. Ra6 {[%clk 0:02:03]}  Bc7 {[%clk 0:01:13]} 32. Ra7 {[%clk 0:02:02]}  Bb6 {[%clk 0:01:12]} 33. Rb7 {[%clk 0:02:01]}  Rd6 {[%clk 0:01:10]} 34. Kf1 {[%clk 0:01:27]}  Ba5 {[%clk 0:00:52]} 35. b4 {[%clk 0:01:24]}  Rb6 {[%clk 0:00:43]} 36. Rxb6 {[%clk 0:01:24]}  Bxb6 {[%clk 0:00:44]} 37. Ke2 {[%clk 0:01:25]}  Kf6 {[%clk 0:00:44]} 38. Kd3 {[%clk 0:01:25]}  h6 {[%clk 0:00:43]} 39. Ne5 {[%clk 0:01:22]}  Ke6 {[%clk 0:00:43]} 40. h4 {[%clk 0:01:15]}  g5 {[%clk 0:00:37]} 41. h5 {[%clk 0:01:12]}  f5 {[%clk 0:00:35]} 42. g4 {[%clk 0:01:09]}  Bc7 {[%clk 0:00:22]} 43. f3 {[%clk 0:01:04]}  Kf6 {[%clk 0:00:12]} 44. gxf5 {[%clk 0:00:59]}  Kxf5 {[%clk 0:00:12]} 45. Ng4 {[%clk 0:00:51]}  Kf4 {[%clk 0:00:10]} 46. Nxh6 {[%clk 0:00:44]}  Kxf3 {[%clk 0:00:06]} 47. Nf5 {[%clk 0:00:41]}  Bd8 {[%clk 0:00:07]} 48. h6 {[%clk 0:00:41]}  Bf6 {[%clk 0:00:07]} 49. b5 {[%clk 0:00:38]}  Kf4 {[%clk 0:00:05]} 50. Ne3 {[%clk 0:00:37]}  g4 {[%clk 0:00:02]} 51. Nxg4 {[%clk 0:00:25]}  Kxg4 {[%clk 0:00:02]} 52. b6 {[%clk 0:00:26]}  Bd8 {[%clk 0:00:03]} 53. b7 {[%clk 0:00:25]}  Bc7 {[%clk 0:00:03]} 54. h7 {[%clk 0:00:26]} 1-0


[Site "https://www.chess.com"]

[Event "Titled Tuesday Blitz September 14 2021"]
[White "Chigaev, Maksim"]
[Black "Suleymanli, Aydin"]
[WhiteFideId "4108116"]
[BlackFideId "13413937"]
[WhiteElo "2610"]
[BlackElo "2506"]
[Result "1-0"]
[Round "11"]
[TimeControl "180+1"]
[Date "2021.09.15"]
[WhiteClock "0:00:41"]
[BlackClock "0:00:04"]

1. d4 {[%clk 0:03:00]}  e6 {[%clk 0:02:44]} 2. c4 {[%clk 0:02:56]}  d5 {[%clk 0:02:45]} 3. Nf3 {[%clk 0:02:55]}  a6 {[%clk 0:02:42]} 4. c5 {[%clk 0:02:53]}  b6 {[%clk 0:02:40]} 5. cxb6 {[%clk 0:02:54]}  cxb6 {[%clk 0:02:40]} 6. Bf4 {[%clk 0:02:54]}  Nc6 {[%clk 0:02:40]} 7. e3 {[%clk 0:02:53]}  Bb7 {[%clk 0:02:39]} 8. Nc3 {[%clk 0:02:52]}  Bd6 {[%clk 0:02:33]} 9. Bd3 {[%clk 0:02:49]}  Nge7 {[%clk 0:02:33]} 10. O-O {[%clk 0:02:48]}  h6 {[%clk 0:02:32]} 11. Rc1 {[%clk 0:02:46]}  O-O {[%clk 0:02:09]} 12. a3 {[%clk 0:02:44]}  f6 {[%clk 0:02:02]} 13. Bg3 {[%clk 0:02:40]}  Rc8 {[%clk 0:01:46]} 14. Re1 {[%clk 0:02:38]}  e5 {[%clk 0:01:42]} 15. dxe5 {[%clk 0:02:29]}  fxe5 {[%clk 0:01:39]} 16. e4 {[%clk 0:02:24]}  d4 {[%clk 0:01:37]} 17. Nd5 {[%clk 0:02:21]}  Kh8 {[%clk 0:01:14]} 18. Nh4 {[%clk 0:02:15]}  b5 {[%clk 0:00:40]} 19. Qg4 {[%clk 0:02:05]}  Qe8 {[%clk 0:00:40]} 20. b4 {[%clk 0:01:49]}  Rd8 {[%clk 0:00:22]} 21. h3 {[%clk 0:01:28]}  Bc8 {[%clk 0:00:22]} 22. Qe2 {[%clk 0:01:23]}  Be6 {[%clk 0:00:20]} 23. Nc7 {[%clk 0:01:23]}  Bxc7 {[%clk 0:00:20]} 24. Rc2 {[%clk 0:01:16]}  Bd6 {[%clk 0:00:17]} 25. Rec1 {[%clk 0:01:16]}  a5 {[%clk 0:00:13]} 26. Bxb5 {[%clk 0:01:12]}  Bd7 {[%clk 0:00:09]} 27. bxa5 {[%clk 0:00:59]}  Nxa5 {[%clk 0:00:07]} 28. Bd3 {[%clk 0:00:54]}  Ba4 {[%clk 0:00:05]} 29. Rc7 {[%clk 0:00:46]}  Bxc7 {[%clk 0:00:04]} 30. Rxc7 {[%clk 0:00:46]}  Rc8 {[%clk 0:00:05]} 31. Rxe7 {[%clk 0:00:45]}  Rc1+ {[%clk 0:00:03]} 32. Kh2 {[%clk 0:00:45]}  Qc6 {[%clk 0:00:03]} 33. Bxe5 {[%clk 0:00:43]}  Rg8 {[%clk 0:00:04]} 34. Qg4 {[%clk 0:00:41]} 1-0


[Site "https://www.chess.com"]

[Event "Titled Tuesday Blitz September 14 2021"]
[White "Dvirnyy, Danyyil"]
[Black "Ibrahimli, Murad"]
[WhiteFideId "817570"]
[BlackFideId "13410229"]
[WhiteElo "2531"]
[BlackElo "2109"]
[Result "0-1"]
[Round "11"]
[TimeControl "180+1"]
[Date "2021.09.15"]
[WhiteClock "0:00:10"]
[BlackClock "0:00:26"]

1. e4 {[%clk 0:02:59]}  e6 {[%clk 0:03:00]} 2. d4 {[%clk 0:02:59]}  d5 {[%clk 0:03:00]} 3. Nc3 {[%clk 0:02:58]}  Nf6 {[%clk 0:02:58]} 4. e5 {[%clk 0:02:57]}  Nfd7 {[%clk 0:02:59]} 5. f4 {[%clk 0:02:57]}  c5 {[%clk 0:02:56]} 6. Nf3 {[%clk 0:02:57]}  Nc6 {[%clk 0:02:56]} 7. Be3 {[%clk 0:02:57]}  a6 {[%clk 0:02:55]} 8. a3 {[%clk 0:02:54]}  b5 {[%clk 0:02:55]} 9. Ne2 {[%clk 0:02:53]}  cxd4 {[%clk 0:02:41]} 10. Nexd4 {[%clk 0:02:53]}  Bb7 {[%clk 0:02:40]} 11. Bd3 {[%clk 0:02:53]}  Nc5 {[%clk 0:02:39]} 12. O-O {[%clk 0:02:53]}  Be7 {[%clk 0:02:39]} 13. f5 {[%clk 0:02:48]}  Nxd3 {[%clk 0:02:18]} 14. Qxd3 {[%clk 0:02:39]}  exf5 {[%clk 0:02:02]} 15. Nxf5 {[%clk 0:02:29]}  O-O {[%clk 0:01:59]} 16. Bd4 {[%clk 0:01:37]}  Bc8 {[%clk 0:01:43]} 17. c3 {[%clk 0:01:06]}  Be6 {[%clk 0:01:35]} 18. Rae1 {[%clk 0:00:50]}  Re8 {[%clk 0:01:34]} 19. h4 {[%clk 0:00:43]}  h6 {[%clk 0:01:12]} 20. h5 {[%clk 0:00:41]}  Bf8 {[%clk 0:01:08]} 21. Re3 {[%clk 0:00:17]}  Nxd4 {[%clk 0:01:06]} 22. N3xd4 {[%clk 0:00:14]}  Qg5 {[%clk 0:01:01]} 23. Rg3 {[%clk 0:00:14]}  Qxh5 {[%clk 0:01:01]} 24. Rf4 {[%clk 0:00:14]}  g5 {[%clk 0:00:43]} 25. Nxe6 {[%clk 0:00:10]}  Rxe6 {[%clk 0:00:37]} 26. Qxd5 {[%clk 0:00:10]}  Rae8 {[%clk 0:00:35]} 27. Nd6 {[%clk 0:00:07]}  Bxd6 {[%clk 0:00:27]} 28. exd6 {[%clk 0:00:08]}  Re1+ {[%clk 0:00:28]} 29. Rf1 {[%clk 0:00:09]}  Rxf1+ {[%clk 0:00:24]} 30. Kxf1 {[%clk 0:00:09]}  Qh1+ {[%clk 0:00:25]} 31. Kf2 {[%clk 0:00:09]}  Qe1+ {[%clk 0:00:26]} 32. Kf3 {[%clk 0:00:10]}  Qe2# {[%clk 0:00:26]} 0-1


[Site "https://www.chess.com"]